[Event "Titled Tuesday Blitz March 15 Early 2022"]
[White "Shuvalova, Polina"]
[Black "Zhigalko, Sergei"]
[WhiteFideId "24171760"]
[BlackFideId "13502956"]
[WhiteElo "2355"]
[BlackElo "2662"]
[Result "0-1"]
[Round "11"]
[TimeControl "180+1"]
[Date "2022.03.15"]
[WhiteClock "0:00:03"]
[BlackClock "0:00:21"]

1. d4 {[%clk 0:03:00]}  Nf6 {[%clk 0:02:58]} 2. Nf3 {[%clk 0:02:59]}  e6 {[%clk 0:02:58]} 3. Bf4 {[%clk 0:02:58]}  d5 {[%clk 0:02:54]} 4. e3 {[%clk 0:02:57]}  Bd6 {[%clk 0:02:55]} 5. Bxd6 {[%clk 0:02:56]}  Qxd6 {[%clk 0:02:56]} 6. c4 {[%clk 0:02:57]}  O-O {[%clk 0:02:55]} 7. Nc3 {[%clk 0:02:56]}  Nbd7 {[%clk 0:02:21]} 8. Rc1 {[%clk 0:02:52]}  c6 {[%clk 0:02:21]} 9. c5 {[%clk 0:02:28]}  Qc7 {[%clk 0:02:15]} 10. b4 {[%clk 0:02:14]}  Re8 {[%clk 0:02:07]} 11. Be2 {[%clk 0:02:10]}  e5 {[%clk 0:02:07]} 12. O-O {[%clk 0:02:02]}  e4 {[%clk 0:02:02]} 13. Nd2 {[%clk 0:02:02]}  Nf8 {[%clk 0:01:55]} 14. b5 {[%clk 0:01:57]}  h5 {[%clk 0:01:54]} 15. Bxh5 {[%clk 0:01:46]}  g6 {[%clk 0:01:54]} 16. Be2 {[%clk 0:01:45]}  Bf5 {[%clk 0:01:39]} 17. Rb1 {[%clk 0:01:36]}  Kg7 {[%clk 0:01:31]} 18. Qb3 {[%clk 0:01:29]}  Re7 {[%clk 0:01:12]} 19. h3 {[%clk 0:01:19]}  Ne6 {[%clk 0:01:11]} 20. b6 {[%clk 0:00:55]}  axb6 {[%clk 0:01:07]} 21. Qxb6 {[%clk 0:00:52]}  Qd7 {[%clk 0:00:59]} 22. Rfe1 {[%clk 0:00:37]}  Bxh3 {[%clk 0:00:50]} 23. f3 {[%clk 0:00:23]}  Rh8 {[%clk 0:00:32]} 24. f4 {[%clk 0:00:16]}  Bxg2 {[%clk 0:00:23]} 25. f5 {[%clk 0:00:10]}  Ng5 {[%clk 0:00:23]} 26. Kxg2 {[%clk 0:00:09]}  Qxf5 {[%clk 0:00:22]} 27. Rh1 {[%clk 0:00:09]}  Nh3 {[%clk 0:00:21]} 28. Rbf1 {[%clk 0:00:04]}  Qg5+ {[%clk 0:00:21]} 29. Kh2 {[%clk 0:00:03]}  Nf4+ {[%clk 0:00:21]} 0-1


[Site "https://www.chess.com"]

[Event "Titled Tuesday Blitz March 15 Early 2022"]
[White "Tasev, Dejan"]
[Black "Mekhitarian, Krikor Sevag"]
[WhiteFideId "936618"]
[BlackFideId "2107660"]
[WhiteElo "2253"]
[BlackElo "2598"]
[Result "1/2-1/2"]
[Round "11"]
[TimeControl "180+1"]
[Date "2022.03.15"]
[WhiteClock "0:00:15"]
[BlackClock "0:00:05"]

1. e4 {[%clk 0:02:58]}  c5 {[%clk 0:02:58]} 2. Nf3 {[%clk 0:02:58]}  g6 {[%clk 0:02:55]} 3. Nc3 {[%clk 0:02:58]}  Bg7 {[%clk 0:02:50]} 4. d4 {[%clk 0:02:58]}  cxd4 {[%clk 0:02:50]} 5. Nxd4 {[%clk 0:02:58]}  Nc6 {[%clk 0:02:50]} 6. Be3 {[%clk 0:02:59]}  Nf6 {[%clk 0:02:50]} 7. Bc4 {[%clk 0:02:58]}  O-O {[%clk 0:02:49]} 8. Bb3 {[%clk 0:02:59]}  Re8 {[%clk 0:02:49]} 9. f3 {[%clk 0:02:50]}  e6 {[%clk 0:02:31]} 10. Qd2 {[%clk 0:02:41]}  d5 {[%clk 0:02:28]} 11. O-O-O {[%clk 0:02:25]}  dxe4 {[%clk 0:01:50]} 12. Nxc6 {[%clk 0:02:09]}  Qxd2+ {[%clk 0:01:48]} 13. Rxd2 {[%clk 0:02:06]}  bxc6 {[%clk 0:01:45]} 14. fxe4 {[%clk 0:01:42]}  Ng4 {[%clk 0:01:45]} 15. Nd1 {[%clk 0:01:28]}  Nxe3 {[%clk 0:01:29]} 16. Nxe3 {[%clk 0:01:27]}  Bh6 {[%clk 0:01:19]} 17. Re1 {[%clk 0:01:23]}  c5 {[%clk 0:01:19]} 18. Bc4 {[%clk 0:01:18]}  Bb7 {[%clk 0:01:18]} 19. Bd3 {[%clk 0:01:05]}  c4 {[%clk 0:00:43]} 20. Bxc4 {[%clk 0:01:04]}  Bxe4 {[%clk 0:00:43]} 21. Kd1 {[%clk 0:01:03]}  Red8 {[%clk 0:00:38]} 22. Bd3 {[%clk 0:00:54]}  Bc6 {[%clk 0:00:22]} 23. Ke2 {[%clk 0:00:51]}  a5 {[%clk 0:00:19]} 24. g3 {[%clk 0:00:49]}  a4 {[%clk 0:00:17]} 25. a3 {[%clk 0:00:49]}  Rab8 {[%clk 0:00:17]} 26. c3 {[%clk 0:00:45]}  Rb7 {[%clk 0:00:17]} 27. Rc2 {[%clk 0:00:35]}  Rdb8 {[%clk 0:00:12]} 28. Nd1 {[%clk 0:00:32]}  Bd5 {[%clk 0:00:10]} 29. c4 {[%clk 0:00:32]}  Bc6 {[%clk 0:00:10]} 30. Kf1 {[%clk 0:00:30]}  Bg7 {[%clk 0:00:10]} 31. Be4 {[%clk 0:00:28]}  Bxe4 {[%clk 0:00:09]} 32. Rxe4 {[%clk 0:00:29]}  Bxb2 {[%clk 0:00:09]} 33. c5 {[%clk 0:00:30]}  Bxa3 {[%clk 0:00:09]} 34. Rxa4 {[%clk 0:00:30]}  Bb4 {[%clk 0:00:02]} 35. c6 {[%clk 0:00:30]}  Rc7 {[%clk 0:00:02]} 36. Rb2 {[%clk 0:00:28]}  Rxc6 {[%clk 0:00:03]} 37. Raxb4 {[%clk 0:00:28]}  Rxb4 {[%clk 0:00:03]} 38. Rxb4 {[%clk 0:00:29]}  Kg7 {[%clk 0:00:04]} 39. Ke2 {[%clk 0:00:28]}  h5 {[%clk 0:00:05]} 40. h4 {[%clk 0:00:28]}  Ra6 {[%clk 0:00:05]} 41. Ne3 {[%clk 0:00:28]}  Ra2+ {[%clk 0:00:06]} 42. Kf3 {[%clk 0:00:28]}  Ra3 {[%clk 0:00:07]} 43. Rb7 {[%clk 0:00:28]}  Kf6 {[%clk 0:00:06]} 44. Kf2 {[%clk 0:00:25]}  Ra2+ {[%clk 0:00:06]} 45. Kf3 {[%clk 0:00:23]}  Ra3 {[%clk 0:00:06]} 46. Rc7 {[%clk 0:00:24]}  Rb3 {[%clk 0:00:05]} 47. Ke4 {[%clk 0:00:20]}  Ra3 {[%clk 0:00:04]} 48. Kf4 {[%clk 0:00:17]}  Ra4+ {[%clk 0:00:04]} 49. Nc4 {[%clk 0:00:16]}  Ra1 {[%clk 0:00:04]} 50. Nd6 {[%clk 0:00:16]}  Rf1+ {[%clk 0:00:04]} 51. Ke3 {[%clk 0:00:16]}  Kg7 {[%clk 0:00:04]} 52. Ne8+ {[%clk 0:00:15]}  Kf8 {[%clk 0:00:04]} 53. Nd6 {[%clk 0:00:14]}  Rf6 {[%clk 0:00:04]} 54. Ne4 {[%clk 0:00:14]}  Rf5 {[%clk 0:00:04]} 55. Ng5 {[%clk 0:00:14]}  Kg8 {[%clk 0:00:04]} 56. Ke4 {[%clk 0:00:14]}  Kf8 {[%clk 0:00:04]} 57. Rc3 {[%clk 0:00:14]}  Kg7 {[%clk 0:00:04]} 58. Rf3 {[%clk 0:00:14]}  Rxf3 {[%clk 0:00:04]} 59. Kxf3 {[%clk 0:00:14]}  Kf6 {[%clk 0:00:05]} 60. Kf4 {[%clk 0:00:15]}  Ke7 {[%clk 0:00:05]} 61. Nf3 {[%clk 0:00:15]}  f6 {[%clk 0:00:05]} 62. Ke4 {[%clk 0:00:15]}  Kd6 {[%clk 0:00:05]} 63. Nd2 {[%clk 0:00:15]}  e5 {[%clk 0:00:05]} 64. Nc4+ {[%clk 0:00:15]}  Ke6 {[%clk 0:00:05]} 65. Nd2 {[%clk 0:00:14]}  Kd6 {[%clk 0:00:06]} 66. Nb3 {[%clk 0:00:13]}  Ke6 {[%clk 0:00:06]} 67. Nc5+ {[%clk 0:00:14]}  Kd6 {[%clk 0:00:06]} 68. Nd3 {[%clk 0:00:15]}  Ke6 {[%clk 0:00:07]} 69. Nb4 {[%clk 0:00:15]}  Kd6 {[%clk 0:00:07]} 70. Ke3 {[%clk 0:00:15]}  Ke6 {[%clk 0:00:07]} 71. Nd3 {[%clk 0:00:15]}  Kd5 {[%clk 0:00:07]} 72. Ne1 {[%clk 0:00:15]}  Ke6 {[%clk 0:00:08]} 73. Nf3 {[%clk 0:00:15]}  Kf5 {[%clk 0:00:08]} 74. Kf2 {[%clk 0:00:15]}  Ke4 {[%clk 0:00:08]} 75. Nd2+ {[%clk 0:00:14]}  Kd5 {[%clk 0:00:04]} 76. Ke3 {[%clk 0:00:14]}  Ke6 {[%clk 0:00:05]} 77. Ke4 {[%clk 0:00:15]}  Kd6 {[%clk 0:00:05]} 1/2-1/2


[Site "https://www.chess.com"]

[Event "Titled Tuesday Blitz March 15 Early 2022"]
[White "Van den Dikkenberg, Erik"]
[Black "Zheenbekov, Nurgazy"]
[WhiteFideId "1005880"]
[BlackFideId "13800485"]
[WhiteElo "2118"]
[BlackElo "1959"]
[Result "0-1"]
[Round "11"]
[TimeControl "180+1"]
[Date "2022.03.15"]
[WhiteClock "0:00:23"]
[BlackClock "0:01:23"]

1. e4 {[%clk 0:03:00]}  e5 {[%clk 0:02:56]} 2. Nf3 {[%clk 0:03:00]}  Nc6 {[%clk 0:02:55]} 3. d4 {[%clk 0:03:01]}  exd4 {[%clk 0:02:55]} 4. Nxd4 {[%clk 0:03:01]}  Bc5 {[%clk 0:02:55]} 5. Nb3 {[%clk 0:03:01]}  Bb6 {[%clk 0:02:52]} 6. Nc3 {[%clk 0:03:00]}  Nf6 {[%clk 0:02:51]} 7. Bd3 {[%clk 0:02:54]}  h6 {[%clk 0:02:51]} 8. Qe2 {[%clk 0:02:51]}  O-O {[%clk 0:02:50]} 9. Be3 {[%clk 0:02:51]}  d5 {[%clk 0:02:33]} 10. exd5 {[%clk 0:02:44]}  Nxd5 {[%clk 0:02:33]} 11. Nxd5 {[%clk 0:02:44]}  Qxd5 {[%clk 0:02:28]} 12. O-O-O {[%clk 0:02:43]}  Bxe3+ {[%clk 0:02:20]} 13. Qxe3 {[%clk 0:02:41]}  Qg5 {[%clk 0:02:20]} 14. f4 {[%clk 0:02:34]}  Qf6 {[%clk 0:02:20]} 15. g4 {[%clk 0:02:21]}  Bxg4 {[%clk 0:02:20]} 16. Rdg1 {[%clk 0:02:20]}  Bf5 {[%clk 0:02:15]} 17. Bxf5 {[%clk 0:02:17]}  Qxf5 {[%clk 0:02:15]} 18. Qg3 {[%clk 0:02:13]}  g6 {[%clk 0:02:15]} 19. h4 {[%clk 0:02:12]}  h5 {[%clk 0:02:15]} 20. a3 {[%clk 0:02:02]}  Rad8 {[%clk 0:02:10]} 21. Kb1 {[%clk 0:02:02]}  Rfe8 {[%clk 0:02:08]} 22. Qc3 {[%clk 0:01:53]}  Re2 {[%clk 0:01:54]} 23. Rd1 {[%clk 0:01:35]}  Rde8 {[%clk 0:01:47]} 24. Rhf1 {[%clk 0:01:29]}  R2e3 {[%clk 0:01:45]} 25. Qc5 {[%clk 0:01:16]}  Qe4 {[%clk 0:01:39]} 26. f5 {[%clk 0:01:05]}  Rxb3 {[%clk 0:01:32]} 27. Rfe1 {[%clk 0:00:35]}  Re3 {[%clk 0:01:31]} 28. Rxe3 {[%clk 0:00:31]}  Qxe3 {[%clk 0:01:31]} 29. Qd5 {[%clk 0:00:26]}  Qe4 {[%clk 0:01:29]} 30. Qd7 {[%clk 0:00:23]}  Rd8 {[%clk 0:01:23]} 0-1


[Site "https://www.chess.com"]

[Event "Titled Tuesday Blitz March 15 Early 2022"]
[White "Yang, Kaiqi"]
[Black "Kanyamarala, Trisha"]
[WhiteFideId "8604398"]
[BlackFideId "45004722"]
[WhiteElo "2373"]
[BlackElo "2047"]
[Result "1-0"]
[Round "11"]
[TimeControl "180+1"]
[Date "2022.03.15"]
[WhiteClock "0:00:27"]
[BlackClock "0:00:07"]

1. e4 {[%clk 0:02:59]}  c5 {[%clk 0:02:51]} 2. Nc3 {[%clk 0:02:59]}  Nc6 {[%clk 0:02:46]} 3. Bb5 {[%clk 0:02:58]}  Nd4 {[%clk 0:02:46]} 4. Nf3 {[%clk 0:02:57]}  g6 {[%clk 0:02:47]} 5. O-O {[%clk 0:02:54]}  Bg7 {[%clk 0:02:46]} 6. Re1 {[%clk 0:02:54]}  e5 {[%clk 0:02:42]} 7. Bc4 {[%clk 0:02:52]}  Ne7 {[%clk 0:02:41]} 8. a4 {[%clk 0:02:47]}  O-O {[%clk 0:02:40]} 9. Nxd4 {[%clk 0:02:44]}  cxd4 {[%clk 0:02:30]} 10. Nd5 {[%clk 0:02:44]}  d6 {[%clk 0:02:29]} 11. c3 {[%clk 0:02:41]}  Nc6 {[%clk 0:02:22]} 12. d3 {[%clk 0:02:37]}  Be6 {[%clk 0:02:19]} 13. Bd2 {[%clk 0:02:28]}  h6 {[%clk 0:02:11]} 14. b4 {[%clk 0:02:27]}  dxc3 {[%clk 0:02:07]} 15. Bxc3 {[%clk 0:02:28]}  Ne7 {[%clk 0:02:03]} 16. Qb3 {[%clk 0:02:26]}  Rc8 {[%clk 0:01:49]} 17. Rac1 {[%clk 0:02:24]}  a6 {[%clk 0:01:31]} 18. a5 {[%clk 0:02:13]}  Bxd5 {[%clk 0:01:30]} 19. Bxd5 {[%clk 0:02:11]}  Nxd5 {[%clk 0:01:29]} 20. Qxd5 {[%clk 0:02:12]}  Rc6 {[%clk 0:01:29]} 21. Bd2 {[%clk 0:02:08]}  Qc7 {[%clk 0:01:27]} 22. Rxc6 {[%clk 0:02:07]}  Qxc6 {[%clk 0:01:22]} 23. Rc1 {[%clk 0:02:03]}  Qxd5 {[%clk 0:01:11]} 24. exd5 {[%clk 0:02:02]}  Rb8 {[%clk 0:01:07]} 25. Be3 {[%clk 0:01:52]}  f5 {[%clk 0:01:03]} 26. Rc7 {[%clk 0:01:51]}  b5 {[%clk 0:00:46]} 27. axb6 {[%clk 0:01:49]}  f4 {[%clk 0:00:46]} 28. Bc5 {[%clk 0:01:02]}  dxc5 {[%clk 0:00:37]} 29. bxc5 {[%clk 0:01:03]}  Bf8 {[%clk 0:00:35]} 30. b7 {[%clk 0:00:55]}  a5 {[%clk 0:00:22]} 31. c6 {[%clk 0:00:29]}  a4 {[%clk 0:00:20]} 32. Rc8 {[%clk 0:00:28]}  a3 {[%clk 0:00:07]} 33. Rxb8 {[%clk 0:00:27]}  a2 {[%clk 0:00:07]} 34. Ra8 {[%clk 0:00:27]} 1-0


[Site "https://www.chess.com"]

[Event "Titled Tuesday Blitz March 15 Early 2022"]
[White "Yedidia, Daniel"]
[Black "Chen, Qi b"]
[WhiteFideId "30905907"]
[BlackFideId "8614733"]
[WhiteElo "2503"]
[BlackElo "2432"]
[Result "1/2-1/2"]
[Round "11"]
[TimeControl "180+1"]
[Date "2022.03.15"]
[WhiteClock "0:00:55"]
[BlackClock "0:00:03"]

1. d4 {[%clk 0:03:00]}  Nf6 {[%clk 0:02:59]} 2. c4 {[%clk 0:03:00]}  e6 {[%clk 0:02:59]} 3. Nc3 {[%clk 0:03:01]}  Bb4 {[%clk 0:02:59]} 4. e3 {[%clk 0:03:01]}  O-O {[%clk 0:02:59]} 5. Bd3 {[%clk 0:03:01]}  c5 {[%clk 0:02:57]} 6. Ne2 {[%clk 0:03:00]}  cxd4 {[%clk 0:02:56]} 7. exd4 {[%clk 0:03:01]}  d5 {[%clk 0:02:56]} 8. O-O {[%clk 0:03:01]}  dxc4 {[%clk 0:02:55]} 9. Bxc4 {[%clk 0:03:02]}  b6 {[%clk 0:02:54]} 10. Bg5 {[%clk 0:03:00]}  Bb7 {[%clk 0:02:53]} 11. Rc1 {[%clk 0:03:00]}  Nbd7 {[%clk 0:02:52]} 12. a3 {[%clk 0:02:59]}  Be7 {[%clk 0:02:50]} 13. Ba2 {[%clk 0:03:00]}  h6 {[%clk 0:02:46]} 14. Bh4 {[%clk 0:02:59]}  Rc8 {[%clk 0:02:46]} 15. Qd3 {[%clk 0:02:55]}  Re8 {[%clk 0:02:43]} 16. Rfd1 {[%clk 0:02:55]}  Nf8 {[%clk 0:02:23]} 17. Bg3 {[%clk 0:02:41]}  Bd6 {[%clk 0:01:45]} 18. Be5 {[%clk 0:02:21]}  Ng6 {[%clk 0:01:38]} 19. Bxd6 {[%clk 0:01:56]}  Qxd6 {[%clk 0:01:37]} 20. Qg3 {[%clk 0:01:57]}  Qd7 {[%clk 0:00:57]} 21. Bb1 {[%clk 0:01:45]}  Ne7 {[%clk 0:00:56]} 22. Nf4 {[%clk 0:01:40]}  Ned5 {[%clk 0:00:53]} 23. Ncxd5 {[%clk 0:01:37]}  Bxd5 {[%clk 0:00:52]} 24. h3 {[%clk 0:01:31]}  Rxc1 {[%clk 0:00:45]} 25. Rxc1 {[%clk 0:01:31]}  Rc8 {[%clk 0:00:46]} 26. Rxc8+ {[%clk 0:01:29]}  Qxc8 {[%clk 0:00:46]} 27. Qc3 {[%clk 0:01:29]}  Qxc3 {[%clk 0:00:40]} 28. bxc3 {[%clk 0:01:30]}  Kf8 {[%clk 0:00:39]} 29. Kf1 {[%clk 0:01:29]}  Ke7 {[%clk 0:00:39]} 30. g3 {[%clk 0:01:29]}  Bc4+ {[%clk 0:00:36]} 31. Ke1 {[%clk 0:01:28]}  g5 {[%clk 0:00:34]} 32. Ng2 {[%clk 0:01:18]}  Nd5 {[%clk 0:00:15]} 33. Kd2 {[%clk 0:01:17]}  Bf1 {[%clk 0:00:15]} 34. Be4 {[%clk 0:01:15]}  Bxg2 {[%clk 0:00:13]} 35. Bxg2 {[%clk 0:01:15]}  Kd6 {[%clk 0:00:13]} 36. Kd3 {[%clk 0:01:10]}  Nc7 {[%clk 0:00:13]} 37. Be4 {[%clk 0:01:06]}  e5 {[%clk 0:00:12]} 38. Bf5 {[%clk 0:01:02]}  exd4 {[%clk 0:00:11]} 39. cxd4 {[%clk 0:01:01]}  b5 {[%clk 0:00:10]} 40. Be4 {[%clk 0:00:57]}  a5 {[%clk 0:00:10]} 41. Kc3 {[%clk 0:00:57]}  Nd5+ {[%clk 0:00:10]} 42. Kd3 {[%clk 0:00:58]}  Ne7 {[%clk 0:00:09]} 43. Kc3 {[%clk 0:00:57]}  f5 {[%clk 0:00:09]} 44. Bd3 {[%clk 0:00:58]}  Kc6 {[%clk 0:00:09]} 45. f4 {[%clk 0:00:57]}  gxf4 {[%clk 0:00:09]} 46. gxf4 {[%clk 0:00:57]}  Nd5+ {[%clk 0:00:09]} 47. Kd2 {[%clk 0:00:58]}  Nxf4 {[%clk 0:00:09]} 48. Bxf5 {[%clk 0:00:58]}  Kd5 {[%clk 0:00:09]} 49. Ke3 {[%clk 0:00:57]}  Ng2+ {[%clk 0:00:08]} 50. Kd3 {[%clk 0:00:56]}  Nf4+ {[%clk 0:00:03]} 51. Ke3 {[%clk 0:00:56]}  Ng2+ {[%clk 0:00:04]} 52. Kd3 {[%clk 0:00:56]}  Nf4+ {[%clk 0:00:03]} 53. Ke3 {[%clk 0:00:55]} 1/2-1/2


[Site "https://www.chess.com"]

[Event "Titled Tuesday Blitz March 15 Early 2022"]
[White "Zong, Davis"]
[Black "Araujo Filho, Luiz Antonio Coel"]
[WhiteFideId "30903955"]
[BlackFideId "2130661"]
[WhiteElo "2061"]
[BlackElo "2201"]
[Result "0-1"]
[Round "11"]
[TimeControl "180+1"]
[Date "2022.03.15"]
[WhiteClock "0:00:03"]
[BlackClock "0:00:04"]

1. d4 {[%clk 0:02:53]}  f5 {[%clk 0:02:59]} 2. Nc3 {[%clk 0:02:49]}  d5 {[%clk 0:02:58]} 3. Nf3 {[%clk 0:02:42]}  Nf6 {[%clk 0:02:56]} 4. Bf4 {[%clk 0:02:41]}  c6 {[%clk 0:02:55]} 5. e3 {[%clk 0:02:38]}  g6 {[%clk 0:02:49]} 6. h4 {[%clk 0:02:30]}  h6 {[%clk 0:02:37]} 7. Ne5 {[%clk 0:02:27]}  Rg8 {[%clk 0:02:30]} 8. Be2 {[%clk 0:02:23]}  Nbd7 {[%clk 0:01:35]} 9. Qd2 {[%clk 0:01:31]}  Nxe5 {[%clk 0:01:35]} 10. dxe5 {[%clk 0:01:31]}  Ne4 {[%clk 0:01:23]} 11. Nxe4 {[%clk 0:01:29]}  fxe4 {[%clk 0:01:24]} 12. O-O-O {[%clk 0:01:26]}  Be6 {[%clk 0:01:11]} 13. f3 {[%clk 0:01:18]}  g5 {[%clk 0:00:55]} 14. hxg5 {[%clk 0:01:16]}  hxg5 {[%clk 0:00:56]} 15. Bg3 {[%clk 0:01:15]}  exf3 {[%clk 0:00:54]} 16. gxf3 {[%clk 0:01:16]}  Qb6 {[%clk 0:00:52]} 17. Kb1 {[%clk 0:01:04]}  O-O-O {[%clk 0:00:50]} 18. Qd4 {[%clk 0:01:03]}  Qa5 {[%clk 0:00:38]} 19. Rd3 {[%clk 0:00:43]}  Kb8 {[%clk 0:00:34]} 20. Ra3 {[%clk 0:00:35]}  Qb6 {[%clk 0:00:34]} 21. Qd2 {[%clk 0:00:34]}  c5 {[%clk 0:00:30]} 22. Rb3 {[%clk 0:00:27]}  Qc7 {[%clk 0:00:27]} 23. Ba6 {[%clk 0:00:20]}  b6 {[%clk 0:00:27]} 24. Rd1 {[%clk 0:00:13]}  Bg7 {[%clk 0:00:20]} 25. f4 {[%clk 0:00:11]}  d4 {[%clk 0:00:18]} 26. Ra3 {[%clk 0:00:10]}  dxe3 {[%clk 0:00:16]} 27. Qe1 {[%clk 0:00:10]}  Rxd1+ {[%clk 0:00:14]} 28. Qxd1 {[%clk 0:00:10]}  gxf4 {[%clk 0:00:15]} 29. Bxf4 {[%clk 0:00:10]}  Bxe5 {[%clk 0:00:15]} 30. Bxe3 {[%clk 0:00:10]}  Rd8 {[%clk 0:00:11]} 31. Rd3 {[%clk 0:00:10]}  Rxd3 {[%clk 0:00:09]} 32. Bxd3 {[%clk 0:00:11]}  Qd6 {[%clk 0:00:08]} 33. Qg1 {[%clk 0:00:09]}  Kc7 {[%clk 0:00:07]} 34. b3 {[%clk 0:00:08]}  c4 {[%clk 0:00:06]} 35. Be4 {[%clk 0:00:02]}  cxb3 {[%clk 0:00:05]} 36. axb3 {[%clk 0:00:03]}  Qa3 {[%clk 0:00:04]} 0-1